[Event "Lueneburger Schachfestival IM 2019"]
[Site "Lueneburg"]
[Date "2019.08.03"]
[Round "1.1"]
[White "Pubantz, Jan"]
[Black "Chennaoui, Yasin"]
[Result "0-1"]
[ECO "E04"]
[WhiteElo "2214"]
[BlackElo "2092"]
[Annotator "NA"]
[PlyCount "100"]
[EventDate "2019.08.02"]
[EventType "tourn"]
[EventCountry "GER"]
[SourceTitle "playchess.com"]
[Source "ChessBase"]
[SourceQuality "1"]
[TimeControl "40/5400+30:1800+30"]

1. d4 Nf6 2. c4 e6 3. Nf3 d5 4. g3 dxc4 5. Bg2 Bb4+ 6. Bd2 a5 7. Qc2 b5 8. a4 Bxd2+ 9. Nfxd2 Ra7 10. axb5 Qxd4 11. Nxc4 O-O 12. O-O Bd7 13. Qb3 Qc5 14. Nc3 Nd5 15. Rfb1 c6 16. b6 Ra6 17. Ne4 Qb5 18. Qxb5 cxb5 19. Nc5 bxc4 20. Nxa6 Nxa6 21. Bxd5 exd5 22. Rxa5 Nb4 23. Rba1 Bc6 24. Rc5 Rb8 25. Ra7 Kf8 26. b7 Ke7 27. Rca5 Kd6 28. f3 d4 29. Kf2 c3 30. bxc3 dxc3 31. Ke3 Kc7 32. Ra8 Rxb7 33. R8a7 Rxa7 34. Rxa7+ Kb6 35. Ra1 Kc5 36. Kf2 Kc4 37. Rf1 c2 38. Ke3 Kc3 39. h4 Nd5+ 40. Kf2 Kd2 41. Ra1 Nc3 42. e4 Nb1 43. Ra2 Ba4 44. g4 Bb3 45. Rb2 Nc3 46. Rxc2+ Bxc2 47. g5 g6 48. Kg3 Ke3 49. h5 Bd1 50. hxg6 hxg6 0-1

[Event "Lueneburger Schachfestival IM 2019"]
[Site "Lueneburg"]
[Date "2019.08.03"]
[Round "1.2"]
[White "Souleidis, Georgios"]
[Black "Stork, Oliver"]
[Result "0-1"]
[ECO "B12"]
[WhiteElo "2426"]
[BlackElo "2322"]
[Annotator "NA"]
[PlyCount "74"]
[EventDate "2019.08.02"]
[EventType "tourn"]
[EventCountry "GER"]
[SourceTitle "playchess.com"]
[Source "ChessBase"]
[SourceQuality "1"]
[TimeControl "40/5400+30:1800+30"]

1. e4 c6 2. d4 d5 3. f3 e6 4. Nc3 Bb4 5. Bd2 Ne7 6. Nce2 Bxd2+ 7. Qxd2 O-O 8. O-O-O Nd7 9. Nf4 a5 10. h4 a4 11. a3 Qc7 12. Kb1 dxe4 13. fxe4 e5 14. Nh5 exd4 15. Nf3 Qa5 16. Qg5 Qxg5 17. hxg5 c5 18. Bd3 Ng6 19. Rh2 Re8 20. Ng3 Nde5 21. Bb5 Re6 22. Rdh1 Nf8 23. Nh5 Ng4 24. Rh4 Rb6 25. Bc4 Ng6 26. Nf4 Nxf4 27. Rxh7 Ng6 28. e5 Be6 29. Bd3 Nf2 30. R1h5 Nxd3 31. cxd3 Bg4 32. Rh1 Bxf3 33. gxf3 Re8 34. f4 Kf8 35. f5 Nxe5 36. Re1 f6 37. Rh8+ Kf7 0-1

[Event "Lueneburger Schachfestival IM 2019"]
[Site "Lueneburg"]
[Date "2019.08.03"]
[Round "1.4"]
[White "Ertan, Can"]
[Black "Kahlert, Thomas"]
[Result "1-0"]
[ECO "C97"]
[WhiteElo "2396"]
[BlackElo "2152"]
[Annotator "NA"]
[PlyCount "77"]
[EventDate "2019.08.02"]
[EventType "tourn"]
[EventCountry "GER"]
[SourceTitle "playchess.com"]
[Source "ChessBase"]
[SourceQuality "1"]
[TimeControl "40/5400+30:1800+30"]

1. e4 e5 2. Nf3 Nc6 3. Bb5 a6 4. Ba4 Nf6 5. O-O Be7 6. Re1 b5 7. Bb3 d6 8. a4 Bd7 9. c3 O-O 10. d4 h6 11. Nbd2 Re8 12. Nf1 Bf8 13. Ng3 Na5 14. Bc2 c5 15. h3 Qc7 16. d5 c4 17. Nh2 Nb7 18. Be3 Be7 19. Nh5 Nc5 20. Bxh6 Nxh5 21. Qxh5 g6 22. Qe2 bxa4 23. Qxc4 Bb5 24. Qa2 Reb8 25. Rad1 Bd7 26. Bc1 Qd8 27. Be3 Qc8 28. f4 Kg7 29. Nf3 Bxh3 30. gxh3 Qxh3 31. Kf2 Bh4+ 32. Nxh4 Qxh4+ 33. Ke2 Qh2+ 34. Bf2 Rh8 35. fxe5 Qh5+ 36. Kd2 Qg5+ 37. Be3 Rh2+ 38. Kc1 Qxe5 39. Bd4 1-0

[Event "Lueneburger Schachfestival IM 2019"]
[Site "Lueneburg"]
[Date "2019.08.03"]
[Round "1.5"]
[White "Knuedel, Torben"]
[Black "Aarav Dengla"]
[Result "1-0"]
[ECO "C42"]
[WhiteElo "2151"]
[BlackElo "2038"]
[Annotator "NA"]
[PlyCount "97"]
[EventDate "2019.08.02"]
[EventType "tourn"]
[EventCountry "GER"]
[SourceTitle "playchess.com"]
[Source "ChessBase"]
[SourceQuality "1"]
[TimeControl "40/5400+30:1800+30"]

1. e4 e5 2. Nf3 Nf6 3. Nc3 Bb4 4. Nxe5 O-O 5. Nd3 Bxc3 6. dxc3 Nxe4 7. Be3 d5 8. Qf3 Qf6 9. Qxf6 Nxf6 10. O-O-O Be6 11. Nf4 Nbd7 12. c4 c6 13. cxd5 Nxd5 14. Nxd5 Bxd5 15. Bd4 f6 16. c4 Be6 17. b3 Rad8 18. Be2 c5 19. Be3 b6 20. Rd6 Kf7 21. f4 f5 22. Rhd1 Ke7 23. Rc6 Rc8 24. Rdd6 Rxc6 25. Rxc6 Rd8 26. Rc7 a5 27. Bf3 Kd6 28. Rc6+ Ke7 29. Bf2 Rb8 30. Bh4+ Nf6 31. Rc7+ Bd7 32. Bxf6+ gxf6 33. Bc6 Kd6 34. Rxd7+ Kxc6 35. Rxh7 Re8 36. Kd2 Rd8+ 37. Ke2 Re8+ 38. Kf3 Rd8 39. Rf7 Rd2 40. Rxf6+ Kb7 41. Rxf5 Rxa2 42. Re5 Rb2 43. Re3 b5 44. cxb5 Kb6 45. f5 Rb1 46. Kf2 Rd1 47. f6 Rd8 48. g4 Kxb5 49. g5 1-0

[Event "Lueneburger Schachfestival IM 2019"]
[Site "Lueneburg"]
[Date "2019.08.03"]
[Round "2.1"]
[White "Chennaoui, Yasin"]
[Black "Aarav Dengla"]
[Result "1/2-1/2"]
[ECO "A20"]
[WhiteElo "2092"]
[BlackElo "2038"]
[Annotator "NA"]
[PlyCount "209"]
[EventDate "2019.08.02"]
[EventType "tourn"]
[EventCountry "GER"]
[SourceTitle "playchess.com"]
[Source "ChessBase"]
[SourceQuality "1"]
[TimeControl "40/5400+30:1800+30"]

1. c4 {[%emt 0:00:00]} e5 {[%emt 0:00:00]} 2. g3 {[%emt 0:00:00]} c6 {[%emt 0:00:20]} 3. d4 {[%emt 0:00:40]} exd4 {[%emt 0:06:03]} 4. Qxd4 {[%emt 0:00:18]} Nf6 {[%emt 0:04:24]} 5. Bg2 {[%emt 0:00:38]} Be7 {[%emt 0:02:17]} 6. Nc3 {[%emt 0:02:18]} O-O {[%emt 0:03:39]} 7. Bf4 {[%emt 0:05:55]} d6 {[%emt 0:03:36]} 8. Rd1 {[%emt 0:02:31]} Be6 {[%emt 0:08:02]} 9. Bxd6 {[%emt 0:17:15]} Bxd6 {[%emt 0:05:20]} 10. Qxd6 {[%emt 0:00:03]} Qxd6 {[%emt 0:05:19]} 11. Rxd6 {[%emt 0:00:06]} Bxc4 {[%emt 0:00:02]} 12. b3 {[%emt 0:05:47]} Ba6 {[%emt 0:16:42]} 13. Nf3 {[%emt 0:01:51]} Nbd7 {[%emt 0:01:36]} 14. O-O {[%emt 0:00:20]} Rfe8 {[%emt 0:01:59]} 15. Rfd1 {[%emt 0:03:57]} Nc5 {[%emt 0:03:30]} 16. e3 {[%emt 0:03:00]} Nce4 {[%emt 0:02:32]} 17. Nxe4 {[%emt 0:00:30]} Nxe4 {[%emt 0:00:03]} 18. Rd7 {[%emt 0:00:32]} Nc5 {[%emt 0:05:49]} 19. R7d6 {[%emt 0:00:47]} Ne4 {[%emt 0:00:14]} 20. Rd7 {[%emt 0:00:06]} Nc5 {[%emt 0:00:09]} 21. R7d4 {[%emt 0:04:04]} Ne6 {[%emt 0:01:21]} 22. Rd6 {[%emt 0:03:10]} Be2 {[%emt 0:07:41]} 23. R1d2 {[%emt 0:00:59]} Bxf3 {[%emt 0:00:06]} 24. Bxf3 {[%emt 0:00:01]} Red8 {[%emt 0:00:25]} 25. Rd7 {[%emt 0:09:23]} Rxd7 {[%emt 0:01:05]} 26. Rxd7 {[%emt 0:00:15]} Nc5 {[%emt 0:00:01]} 27. Rc7 {[%emt 0:01:29]} Rb8 {[%emt 0:00:28]} 28. Be2 {[%emt 0:01:29]} Ne6 {[%emt 0:01:07]} 29. Rd7 {[%emt 0:00:11]} Nc5 {[%emt 0:00:25]} 30. Rc7 {[%emt 0:00:07]} Ne6 {[%emt 0:00:05]} 31. Rd7 {[%emt 0:00:05]} Nc5 {[%emt 0:00:03]} 32. Rd4 {[%emt 0:04:55]} Kf8 {[%emt 0:03:02]} 33. f4 {[%emt 0:18:11]} Ke7 {[%emt 0:07:26]} 34. Kf2 {[%emt 0:00:24]} Rd8 {[%emt 0:01:25]} 35. Bc4 {[%emt 0:00:58]} Rxd4 {[%emt 0:01:17]} 36. exd4 {[%emt 0:00:17]} Ne4+ {[%emt 0:00:58]} 37. Ke3 {[%emt 0:01:08]} Nc3 {[%emt 0:00:08]} 38. b4 {[%emt 0:02:55]} Nd5+ {[%emt 0:01:56]} 39. Bxd5 {[%emt 0:00:03]} cxd5 {[%emt 0:00:01]} 40. f5 {[%emt 0:02:50]} g5 {[%emt 0:05:47]} 41. fxg6 {[%emt 0:31:23]} fxg6 {[%emt 0:30:23]} 42. Kf4 {[%emt 0:01:20]} Kf6 {[%emt 0:00:03]} 43. h4 {[%emt 0:01:14]} h6 {[%emt 0:00:07]} 44. a4 {[%emt 0:01:06]} b6 {[%emt 0:00:47]} 45. b5 {[%emt 0:01:05]} Ke6 {[%emt 0:00:07]} 46. Kg4 {[%emt 0:00:09]} Kf6 {[%emt 0:00:05]} 47. Kf4 {[%emt 0:00:04]} Ke6 {[%emt 0:00:06]} 48. g4 {[%emt 0:01:52]} Kf6 {[%emt 0:00:27]} 49. Ke3 {[%emt 0:01:48]} g5 {[%emt 0:00:10]} 50. hxg5+ {[%emt 0:00:29]} hxg5 {[%emt 0:00:10]} 51. Kd3 {[%emt 0:00:05]} Ke6 {[%emt 0:00:10]} 52. Kc3 {[%emt 0:00:05]} Kd6 {[%emt 0:00:07]} 53. Kb4 {[%emt 0:00:06]} Kd7 {[%emt 0:00:05]} 54. a5 {[%emt 0:00:04]} Kd6 {[%emt 0:00:03]} 55. Ka4 {[%emt 0:00:05]} Kc7 {[%emt 0:00:04]} 56. Kb4 {[%emt 0:00:06]} Kd7 {[%emt 0:00:04]} 57. Ka4 {[%emt 0:00:08]} Kd6 {[%emt 0:00:01]} 58. Kb4 {[%emt 0:00:48]} Ke6 {[%emt 0:00:05]} 59. Kb3 {[%emt 0:00:09]} Kf7 {[%emt 0:00:06]} 60. Ka3 {[%emt 0:00:04]} Kg6 {[%emt 0:00:02]} 61. Ka2 {[%emt 0:00:20]} Kf6 {[%emt 0:00:03]} 62. Kb2 {[%emt 0:00:08]} Kg6 {[%emt 0:00:02]} 63. Kc3 {[%emt 0:00:07]} Kh6 {[%emt 0:00:17]} 64. Kd3 {[%emt 0:00:11]} Kh7 {[%emt 0:00:07]} 65. Kd2 {[%emt 0:00:03]} Kh8 {[%emt 0:00:10]} 66. Kd1 {[%emt 0:00:05]} Kg7 {[%emt 0:00:03]} 67. Kc1 {[%emt 0:00:12]} Kg8 {[%emt 0:00:02]} 68. Kb1 {[%emt 0:00:05]} Kf8 {[%emt 0:00:01]} 69. Ka1 {[%emt 0:00:16]} Ke8 {[%emt 0:00:03]} 70. Kb2 {[%emt 0:00:13]} Kd8 {[%emt 0:00:05]} 71. Kb3 {[%emt 0:00:09]} Ke7 {[%emt 0:00:06]} 72. Ka4 {[%emt 0:00:05]} Ke6 {[%emt 0:00:03]} 73. Kb4 {[%emt 0:00:16]} Kf6 {[%emt 0:00:04]} 74. Kc3 {[%emt 0:00:35]} Ke7 {[%emt 0:00:01]} 75. Kb3 {[%emt 0:00:08]} Kf8 {[%emt 0:00:04]} 76. Ka3 {[%emt 0:00:04]} Kg8 {[%emt 0:00:11]} 77. Ka2 {[%emt 0:00:05]} Kh8 {[%emt 0:00:02]} 78. Ka1 {[%emt 0:00:00]} Kg8 {[%emt 0:00:21]} 79. Kb1 {[%emt 0:00:14]} Kf8 {[%emt 0:00:02]} 80. Kb2 {[%emt 0:00:05]} Kg7 {[%emt 0:00:07]} 81. Kc2 {[%emt 0:00:05]} Kg6 {[%emt 0:00:03]} 82. Kc3 {[%emt 0:00:03]} Kf6 {[%emt 0:00:01]} 83. Kb3 {[%emt 0:00:07]} Ke6 {[%emt 0:00:02]} 84. Kb4 {[%emt 0:00:05]} Kd6 {[%emt 0:00:04]} 85. Ka4 {[%emt 0:00:05]} Ke7 {[%emt 0:00:03]} 86. Kb3 {[%emt 0:01:05]} Ke6 {[%emt 0:00:06]} 87. Ka3 {[%emt 0:00:04]} Kd7 {[%emt 0:00:04]} 88. Kb3 {[%emt 0:00:07]} Kc8 {[%emt 0:00:04]} 89. Kb4 {[%emt 0:00:05]} Kc7 {[%emt 0:00:06]} 90. Ka4 {[%emt 0:00:03]} Kd6 {[%emt 0:00:03]} 91. Ka3 {[%emt 0:00:05]} Ke7 {[%emt 0:00:06]} 92. Kb3 {[%emt 0:00:03]} Kf6 {[%emt 0:00:04]} 93. Kc3 {[%emt 0:00:05]} Kg7 {[%emt 0:00:05]} 94. Kc2 {[%emt 0:00:03]} Kf8 {[%emt 0:00:04]} 95. Kb2 {[%emt 0:00:04]} Kf7 {[%emt 0:00:05]} 96. Ka2 {[%emt 0:00:05]} Ke6 {[%emt 0:00:05]} 97. Kb3 {[%emt 0:00:04]} Kd7 {[%emt 0:00:03]} 98. Ka3 {[%emt 0:00:04]} Kc7 {[%emt 0:00:05]} 99. Kb4 {[%emt 0:00:04]} Kd6 {[%emt 0:00:04]} 100. Kb3 {[%emt 0:00:04]} Ke6 {[%emt 0:00:04]} 101. Ka3 {[%emt 0:00:04]} Kf6 {[%emt 0:00:04]} 102. Ka4 {[%emt 0:00:04]} Kg6 {[%emt 0:00:07]} 103. Kb4 {[%emt 0:00:03]} Kf7 {[%emt 0:00:06]} 104. axb6 {[%emt 0:00:04]} axb6 {[%emt 0:00:02]} 105. Ka4 {[%emt 0:00:08]} 1/2-1/2

[Event "Lueneburger Schachfestival IM 2019"]
[Site "Lueneburg"]
[Date "2019.08.03"]
[Round "2.2"]
[White "Kahlert, Thomas"]
[Black "Knuedel, Torben"]
[Result "1/2-1/2"]
[ECO "D27"]
[WhiteElo "2152"]
[BlackElo "2151"]
[Annotator "NA"]
[PlyCount "128"]
[EventDate "2019.08.02"]
[EventType "tourn"]
[EventCountry "GER"]
[SourceTitle "playchess.com"]
[Source "ChessBase"]
[SourceQuality "1"]
[TimeControl "40/5400+30:1800+30"]

1. Nf3 {[%emt 0:00:00]} Nf6 {[%emt 0:00:00]} 2. c4 {[%emt 0:00:00]} e6 {[%emt 0:00:00]} 3. Nc3 {[%emt 0:00:10]} d5 {[%emt 0:00:00]} 4. d4 {[%emt 0:00:08]} dxc4 {[%emt 0:00:00]} 5. e3 {[%emt 0:00:14]} a6 {[%emt 0:00:00]} 6. a4 {[%emt 0:00:22]} c5 {[%emt 0:00:04]} 7. Bxc4 {[%emt 0:00:07]} Nc6 {[%emt 0:00:05]} 8. O-O {[%emt 0:00:11]} Be7 {[%emt 0:00:04]} 9. Qe2 {[%emt 0:00:19]} cxd4 {[%emt 0:00:25]} 10. Rd1 {[%emt 0:00:38]} e5 {[%emt 0:00:11]} 11. exd4 {[%emt 0:01:49]} exd4 {[%emt 0:00:12]} 12. Nxd4 {[%emt 0:00:14]} Nxd4 {[%emt 0:00:16]} 13. Qe5 {[%emt 0:00:47]} Qd6 {[%emt 0:00:33]} 14. Qxd6 {[%emt 0:00:52]} Bxd6 {[%emt 0:00:03]} 15. Rxd4 {[%emt 0:00:09]} Bc5 {[%emt 0:00:03]} 16. Rh4 {[%emt 0:05:37]} O-O {[%emt 0:12:15]} 17. Bg5 {[%emt 0:06:48]} Ng4 {[%emt 0:09:47]} 18. Ne4 {[%emt 0:04:21]} Bd4 {[%emt 0:08:47]} 19. Rd1 {[%emt 0:07:20]} Bxb2 {[%emt 0:03:36]} 20. Nd6 {[%emt 0:04:39]} Ne5 {[%emt 0:08:26]} 21. Be7 {[%emt 0:05:12]} Bg4 {[%emt 0:04:37]} 22. Rb1 {[%emt 0:19:05]} Rfe8 {[%emt 0:22:25]} 23. Rxg4 {[%emt 0:21:43]} Rxe7 {[%emt 0:02:27]} 24. Re4 {[%emt 0:01:49]} Ba3 {[%emt 0:01:04]} 25. Nf5 {[%emt 0:14:16]} Rc7 {[%emt 0:02:10]} 26. Bd5 {[%emt 0:01:10]} Nc6 {[%emt 0:04:42]} 27. g3 {[%emt 0:01:25]} Bf8 {[%emt 0:00:55]} 28. Rc4 {[%emt 0:01:27]} Rd8 {[%emt 0:04:56]} 29. Bxc6 {[%emt 0:01:15]} Rxc6 {[%emt 0:01:03]} 30. Rxc6 {[%emt 0:00:53]} bxc6 {[%emt 0:00:02]} 31. Rb6 {[%emt 0:00:27]} a5 {[%emt 0:01:20]} 32. Rxc6 {[%emt 0:00:08]} Rd1+ {[%emt 0:00:25]} 33. Kg2 {[%emt 0:00:02]} g6 {[%emt 0:00:09]} 34. Ne3 {[%emt 0:00:32]} Ra1 {[%emt 0:00:17]} 35. Rc4 {[%emt 0:00:56]} Bb4 {[%emt 0:00:39]} 36. g4 {[%emt 0:00:57]} h6 {[%emt 0:03:34]} 37. h4 {[%emt 0:00:10]} Rxa4 {[%emt 0:00:54]} 38. g5 {[%emt 0:01:25]} hxg5 {[%emt 0:00:48]} 39. hxg5 {[%emt 0:00:02]} Ra2 {[%emt 0:00:52]} 40. Rc8+ {[%emt 0:01:33]} Kg7 {[%emt 0:01:48]} 41. Kf3 {[%emt 0:05:23]} Bd2 {[%emt 0:01:33]} 42. Rc5 {[%emt 0:01:40]} Bxe3 {[%emt 0:03:20]} 43. fxe3 {[%emt 0:00:12]} a4 {[%emt 0:01:28]} 44. Rc8 {[%emt 0:00:18]} a3 {[%emt 0:00:40]} 45. Ra8 {[%emt 0:00:07]} Ra1 {[%emt 0:01:11]} 46. Kg2 {[%emt 0:00:21]} a2 {[%emt 0:00:33]} 47. Kh2 {[%emt 0:00:24]} Kh7 {[%emt 0:03:10]} 48. Kg2 {[%emt 0:00:08]} Rb1 {[%emt 0:00:23]} 49. Rxa2 {[%emt 0:00:09]} Rb5 {[%emt 0:00:06]} 50. Kf3 {[%emt 0:01:38]} Rxg5 {[%emt 0:00:14]} 51. Ra7 {[%emt 0:00:43]} Kg7 {[%emt 0:00:20]} 52. Kf4 {[%emt 0:00:33]} Rg1 {[%emt 0:00:59]} 53. Rb7 {[%emt 0:03:37]} Rf1+ {[%emt 0:02:23]} 54. Kg3 {[%emt 0:00:28]} Rf6 {[%emt 0:00:57]} 55. e4 {[%emt 0:00:51]} g5 {[%emt 0:00:41]} 56. e5 {[%emt 0:03:09]} Re6 {[%emt 0:01:30]} 57. Rb5 {[%emt 0:00:19]} Kg6 {[%emt 0:01:41]} 58. Rd5 {[%emt 0:03:19]} Re7 {[%emt 0:14:04]} 59. Kg4 {[%emt 0:00:27]} Re6 {[%emt 0:00:27]} 60. Kg3 {[%emt 0:00:11]} Kf5 {[%emt 0:01:11]} 61. Rd7 {[%emt 0:00:32]} Rxe5 {[%emt 0:00:17]} 62. Rxf7+ {[%emt 0:00:08]} Kg6 {[%emt 0:00:05]} 63. Rf8 {[%emt 0:00:15]} Re3+ {[%emt 0:00:24]} 64. Kg4 {[%emt 0:00:07]} Re4+ {[%emt 0:14:29]} 1/2-1/2

[Event "Lueneburger Schachfestival IM 2019"]
[Site "Lueneburg"]
[Date "2019.08.03"]
[Round "2.3"]
[White "Schulze, Lara"]
[Black "Ertan, Can"]
[Result "1-0"]
[ECO "C54"]
[WhiteElo "2253"]
[BlackElo "2396"]
[Annotator "NA"]
[PlyCount "79"]
[EventDate "2019.08.02"]
[EventType "tourn"]
[EventCountry "GER"]
[SourceTitle "playchess.com"]
[Source "ChessBase"]
[SourceQuality "1"]
[TimeControl "40/5400+30:1800+30"]

1. e4 {[%emt 0:00:00]} e5 {[%emt 0:00:00]} 2. Nf3 {[%emt 0:00:00]} Nc6 {[%emt 0:00:00]} 3. Bc4 {[%emt 0:00:00]} Bc5 {[%emt 0:00:00]} 4. c3 {[%emt 0:00:00]} Nf6 {[%emt 0:00:00]} 5. d3 {[%emt 0:00:00]} O-O {[%emt 0:00:44]} 6. O-O {[%emt 0:00:10]} d6 {[%emt 0:00:08]} 7. Nbd2 {[%emt 0:00:14]} a6 {[%emt 0:00:04]} 8. Bb3 {[%emt 0:00:11]} Ba7 {[%emt 0:00:04]} 9. h3 {[%emt 0:00:28]} h6 {[%emt 0:00:12]} 10. Re1 {[%emt 0:00:22]} Be6 {[%emt 0:00:44]} 11. Nf1 {[%emt 0:02:02]} Nh5 {[%emt 0:03:29]} 12. Be3 {[%emt 0:11:43]} Qf6 {[%emt 0:00:53]} 13. Bc2 {[%emt 0:02:49]} Nf4 {[%emt 0:10:39]} 14. d4 {[%emt 0:05:32]} Ne7 {[%emt 0:00:32]} 15. Ng3 {[%emt 0:08:33]} Neg6 {[%emt 0:00:47]} 16. Nf5 {[%emt 0:00:58]} Rfe8 {[%emt 0:09:27]} 17. Kh2 {[%emt 0:03:56]} Rad8 {[%emt 0:17:19]} 18. g3 {[%emt 0:09:36]} Nd5 {[%emt 0:01:49]} 19. Bxh6 {[%emt 0:17:41]} gxh6 {[%emt 0:02:13]} 20. Nxh6+ {[%emt 0:01:52]} Kh7 {[%emt 0:00:05]} 21. exd5 {[%emt 0:01:22]} Bxd5 {[%emt 0:02:14]} 22. Nf5 {[%emt 0:01:45]} exd4 {[%emt 0:01:48]} 23. Rxe8 {[%emt 0:03:16]} Rxe8 {[%emt 0:00:47]} 24. N3xd4 {[%emt 0:00:35]} Re5 {[%emt 0:02:02]} 25. f4 {[%emt 0:03:44]} Re8 {[%emt 0:02:49]} 26. Qh5+ {[%emt 0:03:07]} Kg8 {[%emt 0:00:04]} 27. Nh6+ {[%emt 0:07:28]} Kf8 {[%emt 0:00:04]} 28. Ng4 {[%emt 0:07:39]} Qxd4 {[%emt 0:19:09]} 29. cxd4 {[%emt 0:00:45]} Re2+ {[%emt 0:00:03]} 30. Nf2 {[%emt 0:02:56]} Rxf2+ {[%emt 0:00:24]} 31. Kg1 {[%emt 0:00:06]} Rg2+ {[%emt 0:00:07]} 32. Kf1 {[%emt 0:00:56]} Ne7 {[%emt 0:00:45]} 33. Bb3 {[%emt 0:03:25]} Bxb3 {[%emt 0:01:22]} 34. Kxg2 {[%emt 0:00:47]} Bd5+ {[%emt 0:00:04]} 35. Kh2 {[%emt 0:00:29]} Bxd4 {[%emt 0:00:05]} 36. Rd1 {[%emt 0:00:42]} c5 {[%emt 0:00:08]} 37. Qh6+ {[%emt 0:00:39]} Ke8 {[%emt 0:03:49]} 38. Qxd6 {[%emt 0:00:44]} b5 {[%emt 0:07:16]} 39. f5 {[%emt 0:00:54]} f6 {[%emt 0:01:35]} 40. Re1 {[%emt 0:00:36]} 1-0

[Event "Lueneburger Schachfestival IM 2019"]
[Site "Lueneburg"]
[Date "2019.08.03"]
[Round "2.4"]
[White "Stork, Oliver"]
[Black "Carlstedt, Jonathan"]
[Result "1/2-1/2"]
[ECO "A37"]
[WhiteElo "2322"]
[BlackElo "2408"]
[Annotator "NA"]
[PlyCount "75"]
[EventDate "2019.08.02"]
[EventType "tourn"]
[EventCountry "GER"]
[SourceTitle "playchess.com"]
[Source "ChessBase"]
[SourceQuality "1"]
[TimeControl "40/5400+30:1800+30"]

1. c4 {[%emt 0:00:00]} c5 {[%emt 0:00:00]} 2. Nf3 {[%emt 0:00:00]} b6 {[%emt 0:00:00]} 3. g3 {[%emt 0:00:29]} Bb7 {[%emt 0:00:03]} 4. Bg2 {[%emt 0:00:05]} g6 {[%emt 0:00:09]} 5. O-O {[%emt 0:00:21]} Bg7 {[%emt 0:00:03]} 6. Nc3 {[%emt 0:00:21]} Nc6 {[%emt 0:04:49]} 7. e3 {[%emt 0:03:24]} Nh6 {[%emt 0:04:30]} 8. d4 {[%emt 0:15:47]} cxd4 {[%emt 0:01:58]} 9. exd4 {[%emt 0:06:05]} Nf5 {[%emt 0:00:52]} 10. Re1 {[%emt 0:12:20]} O-O {[%emt 0:04:43]} 11. Bg5 {[%emt 0:11:13]} h6 {[%emt 0:04:27]} 12. Bf4 {[%emt 0:00:08]} Rc8 {[%emt 0:06:03]} 13. Rc1 {[%emt 0:02:50]} g5 {[%emt 0:10:42]} 14. Nxg5 {[%emt 0:15:54]} hxg5 {[%emt 0:04:53]} 15. Bxg5 {[%emt 0:00:07]} f6 {[%emt 0:00:34]} 16. Bf4 {[%emt 0:07:28]} e6 {[%emt 0:01:20]} 17. d5 {[%emt 0:05:05]} Ne5 {[%emt 0:03:58]} 18. Be4 {[%emt 0:07:41]} Rxc4 {[%emt 0:02:53]} 19. Qh5 {[%emt 0:08:38]} Qe8 {[%emt 0:10:13]} 20. Qxe8 {[%emt 0:00:06]} Rxe8 {[%emt 0:00:04]} 21. Bxe5 {[%emt 0:00:18]} fxe5 {[%emt 0:00:07]} 22. dxe6 {[%emt 0:00:08]} Bxe4 {[%emt 0:00:13]} 23. exd7 {[%emt 0:00:06]} Rd8 {[%emt 0:00:07]} 24. Nxe4 {[%emt 0:00:14]} Rxc1 {[%emt 0:00:07]} 25. Rxc1 {[%emt 0:00:03]} Rxd7 {[%emt 0:00:05]} 26. h4 {[%emt 0:01:13]} Kf7 {[%emt 0:06:40]} 27. Rc6 {[%emt 0:01:26]} Ke7 {[%emt 0:02:38]} 28. Rg6 {[%emt 0:01:31]} Rd4 {[%emt 0:02:28]} 29. f3 {[%emt 0:00:44]} Bh6 {[%emt 0:00:59]} 30. h5 {[%emt 0:00:31]} Be3+ {[%emt 0:02:57]} 31. Kf1 {[%emt 0:00:40]} Bc1 {[%emt 0:01:57]} 32. g4 {[%emt 0:00:27]} Nd6 {[%emt 0:14:46]} 33. h6 {[%emt 0:01:07]} Nxe4 {[%emt 0:05:47]} 34. h7 {[%emt 0:00:00]} Rd1+ {[%emt 0:00:04]} 35. Kg2 {[%emt 0:00:00]} Rd2+ {[%emt 0:00:10]} 36. Kg1 {[%emt 0:00:03]} Rd1+ {[%emt 0:05:21]} 37. Kg2 {[%emt 0:00:05]} Rd2+ {[%emt 0:00:34]} 38. Kg1 {[%emt 0:00:04]} 1/2-1/2